[Event "1st Serbian League 2022"]
[Site "Vrnjacka Banja"]
[Date "2022.09.29"]
[Round "10.1"]
[White "Sanal, Vahap"]
[Black "Demchenko, Anton"]
[Result "0-1"]
[ECO "B06"]
[WhiteElo "2595"]
[BlackElo "2645"]
[Annotator "TA"]
[PlyCount "120"]
[EventDate "2022.09.20"]
[EventType "team-tourn"]
[EventCountry "SRB"]
[SourceTitle "playchess.com"]
[Source "ChessBase"]
[SourceQuality "1"]
[TimeControl "40/5400+30:1800+30"]

{[%evp 9,120,27,43,31,34,0,6,14,29,-18,0,0,21,5,20,15,20,0,0,14,0,10,31,0,14,21,65,0,19,0,76,21,75,0,0,0,71,72,80,41,77,0,0,0,0,0,0,0,0,0,0,-46,-43,-49,-45,-44,0,-196,-216,-424,-141,-142,-168,-487,-269,-233,0,-466,-139,-137,-95,-124,-127,-132,-134,-183,-200,-174,-182,-204,-226,-221,-210,-202,-205,-369,-320,-326,-319,-499,-499,-499,-479,-439,-429,-377,-368,-671,-650,-2923,-2819,-29977,-29978,-29981,-29982,-29982,-29983,-29983,-29984,-29985,-29986,-29986,-29987]} 1. e4 {[%emt 0:02:54]} g6 {[%emt 0:00:18]} 2. d4 {[%emt 0:00:14]} Bg7 {[%emt 0:00:11]} 3. Nc3 {[%emt 0:00:11]} d6 {[%emt 0:00:05]} 4. Bg5 {[%emt 0:01:31]} a6 {[%emt 0:00:04]} 5. Qd2 {[%emt 0:01:26]} Nd7 {[%emt 0:03:42]} 6. O-O-O {[%emt 0:01:36] B06: Modern Defence.} b5 {[%emt 0:08:00]} 7. Kb1 {[%emt 0:07:55]} Bb7 {[%emt 0:04:03]} 8. f3 {[%emt 0:11:46] The position is equal.} c5 {[%emt 0:03:30]} 9. Be3 {[%emt 0:02:15] [#]} (9. Nge2 $142) 9... Rc8 $146 {[%emt 0:12:37]} ({Predecessor:} 9... Ngf6 10. e5 dxe5 11. dxe5 Nxe5 12. Qxd8+ Rxd8 13. Rxd8+ Kxd8 14. Bxc5 Nfd7 15. Bd4 f6 {0-1 (34) Stankovic,M (1779)-Drljevic,L (2189) Novi Banovci 2020}) 10. h4 {[%emt 0:01:01]} Ngf6 {[%emt 0:10:02]} 11. g4 {[%emt 0:08:54]} h6 {[%emt 0:10:29]} 12. dxc5 {[%emt 0:04:43]} Nxc5 {[%emt 0:03:44]} 13. Rh2 {[%emt 0:03:03][%cal Oe4e5]} b4 {[%emt 0:05:28]} 14. Nce2 {[%emt 0:03:18]} Qc7 {[%emt 0:06:04][%cal Oc5e4]} 15. Nd4 {[%emt 0:05:22]} Nfd7 {[%emt 0:04:43]} 16. h5 {[%emt 0:02:39]} (16. Qxb4 d5 17. Rf2 dxe4 $15) 16... g5 {[%emt 0:00:15]} 17. Qxb4 {[%emt 0:04:07]} e6 {[%emt 0:00:35]} 18. Rhd2 {[%emt 0:00:58]} (18. Nb3 $14) 18... O-O $11 {[%emt 0:00:26]} 19. Nb3 {[%emt 0:01:59]} d5 {[%emt 0:10:08]} (19... a5 $11 20. Qa3 (20. Nxa5 Bxe4 21. Bb5 Bh7 $11) 20... Ne5) 20. exd5 {[%emt 0:03:57]} (20. Nxc5 $16 Nxc5 21. exd5 (21. Bxc5 a5 $11)) 20... Nxb3 {[%emt 0:00:58]} 21. axb3 {[%emt 0:02:05]} ({White should play} 21. cxb3 $16 Bxd5 22. Bc4 (22. Bxa6 Rb8 $11)) 21... Bxd5 {[%emt 0:00:31]} 22. Bd4 {[%emt 0:07:43]} Bxd4 {[%emt 0:00:11]} (22... a5 $11 {keeps the balance.} 23. Qc3 Qxc3 24. bxc3 Bxd4 25. Rxd4 Rxc3) 23. Qxd4 $16 {[%emt 0:00:08]} Ne5 {[%emt 0:00:04] Inhibits Bc4.} 24. Be2 {[%emt 0:04:30]} (24. Bxa6 Ra8 25. Be2 Rfb8 $19) 24... a5 {[%emt 0:02:22]} 25. f4 {[%emt 0:05:36]} ({Better is} 25. c4 $1 $16 {[%cal Rc4d5]} Bb7 26. Qc3) 25... gxf4 $11 {[%emt 0:00:20]} 26. Rf1 {[%emt 0:04:50] Inhibits f3.} a4 $1 {[%emt 0:01:56]} 27. bxa4 {[%emt 0:01:25]} (27. Qxa4 $2 Ra8 28. Qxf4 Qa5 $19) 27... Nc4 {[%emt 0:05:57]} 28. Bxc4 {[%emt 0:00:06]} Bxc4 {[%emt 0:00:03]} (28... Qxc4 29. Qxc4 Rxc4 30. b3 $16) 29. Rfd1 {[%emt 0:05:18]} ({But not} 29. Rxf4 e5 30. Qxc4 Qxc4 31. Rxc4 Rxc4 $17) 29... Rfd8 {[%emt 0:03:56]} 30. Qc3 {[%emt 0:01:26]} (30. Qxd8+ $11 {is superior.} Rxd8 31. Rxd8+ Kg7 32. b3) 30... Rxd2 $15 {[%emt 0:00:26] Chess con chili.} 31. Qxd2 {[%emt 0:00:09]} e5 $1 {[%emt 0:00:36]} 32. Nh3 {[%emt 0:00:23]} Be6 {[%emt 0:01:10]} (32... Bd5 $5) 33. Nf2 $2 {[%emt 0:00:05]} (33. b3 $1 $11) 33... Qc6 $19 {[%emt 0:00:15]} 34. Nd3 $2 {[%emt 0:02:06]} (34. Qe2 {was worth a try.} Qxa4 35. b3) 34... Qxa4 $2 {[%emt 0:00:54]} (34... f3 $1 $19 {has better winning chances.} 35. b3 e4) 35. b3 $17 {[%emt 0:00:01]} Qd4 {[%emt 0:00:59]} 36. Qg2 {[%emt 0:01:22] Against Ra8} (36. Qe2 Qc3 37. Qd2 Qxd2 38. Rxd2) 36... Qc3 {[%emt 0:01:44]} (36... e4 $142 {...f3 is the strong threat.} 37. Nb2 f3 38. Qxf3 Qxb2+ 39. Kxb2 exf3) 37. Qd2 $19 {[%emt 0:01:07]} Qd4 {[%emt 0:00:31]} (37... Bxg4 38. Qxc3 Rxc3 39. Rg1 $14) (37... Qxd2 38. Rxd2 f6) 38. Qg2 {[%emt 0:00:02]} Bd5 $2 {[%emt 0:01:19]} (38... e4 $19 {is more deadly.} 39. Nb2 f3 40. Qxf3 Qxb2+ 41. Kxb2 exf3) 39. Qf2 $17 {[%emt 0:00:08]} Qc3 $40 {[%emt 0:00:21][%mdl 128] And now ...Ra8 would win. White is in trouble.} 40. Qd2 {[%emt 0:00:43]} Bf3 {[%emt 0:00:49][%csl LRd1,LRg4] Black has more active pieces.} 41. Qxc3 {[%emt 0:03:02]} Rxc3 {[%emt 0:00:02][%mdl 4096] Endgame KRB-KRN} 42. Re1 {[%emt 0:00:27]} (42. Kb2 $17 Rxb3+ 43. Kxb3 Bxd1 44. Nxe5) 42... f6 $19 {[%emt 0:00:27]} ({Much less strong is} 42... Bxg4 43. Kb2 Rc7 44. Rg1 $14 (44. Rxe5 f3 $11)) 43. Kb2 {[%emt 0:00:57]} Rc8 {[%emt 0:09:01]} 44. c4 {[%emt 0:01:01]} Kf7 $1 {[%emt 0:00:07]} 45. Nf2 {[%emt 0:00:12]} Ke6 {[%emt 0:02:26]} 46. Kc3 {[%emt 0:04:21]} Ra8 {[%emt 0:02:15] Prevents Ra1.} 47. Kb2 $2 {[%emt 0:01:03]} (47. Nd3 Kd6 48. Rg1) 47... Rd8 {[%emt 0:03:06]} 48. Kc3 {[%emt 0:00:09] [#] Prevents Rd2.} f5 $1 {[%emt 0:06:28][%cal Bf6f5,Bf5g4,Bg4g3,Bg3g2][%mdl 32]} 49. Nd3 {[%emt 0:00:07] [#]} (49. gxf5+ {was the only chance.} Kxf5 50. b4) 49... Rxd3+ $1 {[%emt 0:01:16][%mdl 512]} 50. Kxd3 {[%emt 0:00:02]} fxg4 {[%emt 0:00:05] KR-KB} 51. b4 {[%emt 0:00:15]} g3 {[%emt 0:00:26] White must now prevent ...g2.} 52. b5 {[%emt 0:01:40]} g2 {[%emt 0:01:27] aiming for ...e4+.} 53. c5 $2 {[%emt 0:01:30]} (53. b6) 53... Kd5 {[%emt 0:00:40]} 54. c6 {[%emt 0:00:09]} e4+ {[%emt 0:00:12][%cal Be5e4,Be4e3,Be3e2][%mdl 32]} 55. Kd2 {[%emt 0:00:57]} Kd4 {[%emt 0:03:43] Black mates.} 56. Rg1 {[%emt 0:01:07]} e3+ {[%emt 0:00:15]} 57. Kc1 {[%emt 0:00:02]} Kd3 {[%emt 0:01:49]} 58. Kb2 {[%emt 0:01:03]} e2 {[%emt 0:00:15]} 59. Rc1 {[%emt 0:00:21]} Kd2 {[%emt 0:00:50]} 60. b6 {[%emt 0:00:36] [#]} Bxc6 $1 {[%emt 0:02:01][%mdl 576] Promotion.  Weighted Error Value: White=0.58/Black=0.26 (precise)} 0-1

[Event "1st Serbian League 2022"]
[Site "Vrnjacka Banja"]
[Date "2022.09.29"]
[Round "10.2"]
[White "Atalik, Suat"]
[Black "Gurel, Ediz"]
[Result "1-0"]
[ECO "D12"]
[WhiteElo "2436"]
[BlackElo "2437"]
[Annotator "TA"]
[PlyCount "107"]
[EventDate "2022.09.20"]
[EventType "team-tourn"]
[EventCountry "SRB"]
[SourceTitle "playchess.com"]
[Source "ChessBase"]
[SourceQuality "1"]
[TimeControl "40/5400+30:1800+30"]

{[%evp 12,107,23,19,30,19,22,20,20,20,20,21,22,19,34,12,75,41,68,33,41,43,71,36,64,39,49,43,56,0,52,33,41,0,41,-27,-7,-9,45,11,9,5,5,8,10,13,12,0,52,43,55,60,58,45,76,37,102,62,63,33,29,28,33,27,30,34,36,36,35,35,35,35,39,27,51,40,43,45,45,45,45,46,114,116,112,115,115,115,115,113,89,45,132,132,132,31,29972,4979]} 1. d4 {[%emt 0:00:09]} d5 {[%emt 0:00:06]} 2. c4 {[%emt 0:00:26]} c6 {[%emt 0:00:04]} 3. e3 {[%emt 0:00:23]} Nf6 {[%emt 0:01:38]} 4. Nc3 {[%emt 0:00:24]} Bf5 {[%emt 0:00:22]} 5. Nf3 {[%emt 0:01:41]} e6 {[%emt 0:00:05]} 6. Nh4 {[%emt 0:00:10]} Be4 {[%emt 0:00:16]} 7. f3 {[%emt 0:00:53]} Bg6 {[%emt 0:00:04] D12: Slav Defence: 3 Nf3 Nf6 4 e3 Bf5.} 8. Bd2 {[%emt 0:00:21]} Be7 {[%emt 0:00:06]} 9. Nxg6 {[%emt 0:01:08]} hxg6 {[%emt 0:00:02] The position is equal.} 10. Qc2 {[%emt 0:00:35]} a5 {[%emt 0:06:40] [#]} 11. cxd5 $146 {[%emt 0:04:46]} ({Predecessor:} 11. g3 O-O 12. Kf2 c5 13. dxc5 Bxc5 14. cxd5 exd5 15. Kg2 Nc6 16. Bb5 d4 17. Nd1 dxe3 18. Nxe3 {0-1 (38) Sorokin,A (2536)-Gledura,B (2652) Dulles 2022}) 11... Nxd5 {[%emt 0:01:29]} 12. g3 {[%emt 0:04:51]} Na6 {[%emt 0:07:24][%cal Oe6e5]} 13. a3 {[%emt 0:03:17]} Nac7 {[%emt 0:10:51]} (13... c5 $11 {remains equal.}) 14. Bg2 {[%emt 0:06:56]} Rc8 {[%emt 0:03:22]} 15. Ne2 {[%emt 0:08:43]} Nb5 {[%emt 0:06:22]} 16. e4 {[%emt 0:03:52]} Nf6 {[%emt 0:01:26]} 17. Be3 {[%emt 0:02:24]} O-O {[%emt 0:01:45][%cal Oc6c5]} 18. Rd1 {[%emt 0:06:00]} Qb6 {[%emt 0:05:09]} 19. Qb3 {[%emt 0:03:11]} Qa6 {[%emt 0:06:24]} 20. Nf4 {[%emt 0:01:59]} ({White should try} 20. a4 $14 Nc7 21. Nf4) 20... Rfd8 {[%emt 0:05:40]} (20... a4 $11 21. Qc4 Nd7) 21. a4 {[%emt 0:03:32] Hoping for Bf1.} Nc7 $1 {[%emt 0:06:39][%cal Oc6c5]} 22. Kf2 {[%emt 0:02:36]} b5 {[%emt 0:01:40]} (22... c5 $5) 23. Rhe1 {[%emt 0:07:49]} (23. Nd3 $14) 23... bxa4 {[%emt 0:02:17]} 24. Qxa4 {[%emt 0:00:15]} Rb8 {[%emt 0:00:48]} (24... Bb4 $11) 25. Qc2 {[%emt 0:07:14]} Qb5 {[%emt 0:03:24]} 26. Nd3 $36 {[%emt 0:01:10][%mdl 2048] White has good play.} Na6 $1 {[%emt 0:00:56]} 27. Bf1 {[%emt 0:03:17]} Nb4 {[%emt 0:02:01]} 28. Nxb4 {[%emt 0:00:31]} Qxb4 {[%emt 0:00:01]} 29. Rb1 {[%emt 0:02:18]} Rbc8 {[%emt 0:04:34]} (29... g5 $11) 30. Qc3 $14 {[%emt 0:05:39]} Qb8 {[%emt 0:00:53]} 31. Red1 {[%emt 0:01:21]} ({But not} 31. Qxa5 Bb4 32. Qa4 Bxe1+ 33. Kxe1 Qb7 $15) 31... Bb4 {[%emt 0:00:51]} 32. Qc2 {[%emt 0:00:08]} Qb7 {[%emt 0:03:41][%cal Oc6c5] Against Ba6} 33. Kg2 {[%emt 0:00:43]} Rc7 {[%emt 0:01:13]} ({Black should play} 33... c5 $14 34. dxc5 Rxd1 35. Rxd1 Nd7) 34. Be2 {[%emt 0:03:10]} c5 {[%emt 0:04:25]} 35. dxc5 {[%emt 0:00:32]} Rdc8 {[%emt 0:00:04][%cal Rb4c5]} 36. Qd3 {[%emt 0:04:47]} Bxc5 {[%emt 0:00:50]} 37. Bf4 {[%emt 0:00:18]} Rc6 {[%emt 0:00:10]} 38. Rdc1 {[%emt 0:03:53]} Ba7 {[%emt 0:05:39]} 39. Qb5 {[%emt 0:03:42]} Qxb5 {[%emt 0:01:37]} 40. Bxb5 {[%emt 0:00:06]} Rc2+ {[%emt 0:00:02]} 41. Kh1 {[%emt 0:33:03]} Bd4 {[%emt 0:31:51]} 42. Ba4 {[%emt 0:00:00] A strong pair of Bishops.} R2c5 {[%emt 0:00:00]} 43. Rxc5 {[%emt 0:00:00]} Rxc5 {[%emt 0:00:00]} 44. Rc1 {[%emt 0:00:00]} Rxc1+ {[%emt 0:00:00]} 45. Bxc1 {[%emt 0:00:00][%mdl 4096] Endgame KBB-KBN} Kf8 {[%emt 0:00:00]} 46. b3 {[%emt 0:00:00]} Ke7 {[%emt 0:00:00]} (46... Bc3 $14) 47. Bd2 $16 {[%emt 0:00:00]} Bb6 {[%emt 0:00:00]} 48. b4 {[%emt 0:00:00]} axb4 {[%emt 0:00:00]} 49. Bxb4+ {[%emt 0:00:00]} Kd8 {[%emt 0:00:00]} 50. Bf8 $1 {[%emt 0:00:00]} Nh5 {[%emt 0:00:00]} 51. f4 {[%emt 0:00:00][%cal Bf3f4,Bf4f5][%mdl 32]} Bd4 {[%emt 0:00:00] [#]} ({Better is} 51... Be3 $14) 52. e5 $1 {[%emt 0:00:00]} g5 {[%emt 0:00:59]} 53. Kg2 {[%emt 0:00:00]} (53. Bd1 $16 Ke8 54. Bd6) 53... f6 $2 {[%emt 0:06:38][%mdl 8192] [#]} (53... g4 $14) 54. f5 $1 {[%emt 0:00:00] Weighted Error Value: White=0.17 (very precise) /Black=0.28 (precise)} 1-0

[Event "1st Serbian League 2022"]
[Site "Vrnjacka Banja"]
[Date "2022.09.29"]
[Round "10.3"]
[White "Markus, Robert"]
[Black "Vucinic, Gojko"]
[Result "1-0"]
[ECO "D80"]
[WhiteElo "2615"]
[BlackElo "2380"]
[Annotator "TA"]
[PlyCount "81"]
[EventDate "2022.09.20"]
[EventType "team-tourn"]
[EventCountry "SRB"]
[SourceTitle "playchess.com"]
[Source "ChessBase"]
[SourceQuality "1"]
[TimeControl "40/5400+30:1800+30"]

{[%evp 10,81,-9,-4,0,10,16,0,0,-1,-2,0,0,0,0,0,0,-8,0,0,0,0,0,0,14,0,13,20,12,25,38,26,31,27,48,67,87,24,51,19,10,10,14,15,46,53,113,0,352,348,673,659,648,260,251,243,243,206,486,486,480,368,643,387,29973,1452,29979,29980,29989,12836,29990,29991,29991,29992]} 1. d4 {[%emt 0:00:03]} Nf6 {[%emt 0:00:04]} 2. c4 {[%emt 0:00:11]} g6 {[%emt 0:00:05]} 3. Nc3 {[%emt 0:00:06]} d5 {[%emt 0:00:04]} 4. e3 {[%emt 0:00:09]} Bg7 {[%emt 0:02:24]} 5. Qb3 {[%emt 0:00:08]} e6 {[%emt 0:00:03]} 6. Qa3 {[%emt 0:00:09]} a5 {[%emt 0:02:01] D80: Grünfeld: Unusual White 4th moves and 4 Bg5.} 7. Nf3 {[%emt 0:01:05]} Nc6 {[%emt 0:00:33][%cal Bb8c6,Bc6b4,Bb4d5][%mdl 32]} 8. Bd2 {[%emt 0:07:02]} Nb4 {[%emt 0:04:00] Threatens to win with ...Nc2+. The position is equal.} 9. Qb3 {[%emt 0:02:10] Against Nc2+} O-O {[%emt 0:12:11]} 10. a3 {[%emt 0:02:18]} dxc4 {[%emt 0:02:00]} 11. Bxc4 {[%emt 0:00:09]} Nbd5 {[%emt 0:00:03]} 12. O-O {[%emt 0:02:15]} b6 {[%emt 0:00:35] [#]} 13. Rac1 $146 {[%emt 0:08:27]} ({Predecessor:} 13. Ne5 Bb7 14. Rfd1 Nd7 15. Nxd7 Qxd7 16. Nxd5 exd5 17. Be2 c5 18. Qxb6 c4 19. Bxa5 {1-0 (49) Holt,C (2549)-Hnydiuk,A (2411) Chess.com INT 2020}) 13... Bb7 {[%emt 0:04:33]} 14. Nxd5 {[%emt 0:14:13]} exd5 {[%emt 0:05:49]} 15. Bb5 {[%emt 0:00:17]} Qd6 {[%emt 0:00:05] Prevents Bc6.} 16. Qc2 {[%emt 0:00:34]} c6 {[%emt 0:05:03]} 17. Bxc6 {[%emt 0:05:48]} Rac8 {[%emt 0:15:12][%cal Rb7c6]} 18. Bxb7 {[%emt 0:00:15]} ({Don't blunder} 18. Ne5 $2 Ne4 19. Rfd1 Bxe5 20. dxe5 Qe7 $19) 18... Rxc2 {[%emt 0:00:03]} 19. Rxc2 {[%emt 0:00:07]} Rb8 {[%emt 0:20:29]} 20. Bc8 {[%emt 0:02:43]} Ne4 {[%emt 0:01:55]} 21. Rfc1 {[%emt 0:01:18]} Nxd2 {[%emt 0:01:07]} 22. Nxd2 {[%emt 0:00:25]} b5 {[%emt 0:00:12]} 23. Bh3 {[%emt 0:09:17]} (23. Rc7 $1 $16) 23... Bf8 $1 $11 {[%emt 0:06:46]} 24. g3 {[%emt 0:11:36] Black should prevent Nf3.} a4 $1 {[%emt 0:04:45]} 25. Nf3 {[%emt 0:11:31] next Ne5 is good for White.} b4 {[%emt 0:03:24]} 26. axb4 {[%emt 0:00:07]} Rxb4 {[%emt 0:00:03]} 27. Ne5 $1 {[%emt 0:00:47] Rc6 is the strong threat.} Rb3 {[%emt 0:02:12]} ({Black should try} 27... Rb7 $14) 28. Bf1 {[%emt 0:07:19] White is more active.} ({White should play} 28. Rc7 $16 {Strongly threatening R1c6.} Rxb2 29. Rxf7) 28... Qb6 {[%emt 0:03:27][%mdl 8192] [#]} (28... Qe6 $11 {and Black has nothing to worry.}) 29. Rc8 $1 $18 {[%emt 0:04:06]} Qb4 $2 {[%emt 0:01:21]} (29... Rxb2 $2 {[#]} 30. Rxf8+ $1 {[%mdl 512]} (30. Nd7 Qd6 $11) 30... Kxf8 31. Nd7+ Ke7 32. Nxb6 $18) (29... Qa7 30. Rd8 (30. R1c7 Rb7 $16) 30... Qe7) 30. R1c7 {[%emt 0:02:41]} ({Weaker is} 30. Nd7 Rxb2 31. Nxf8 (31. Rxf8+ Kg7 $17) 31... Kg7 32. Ne6+ (32. Nd7 $2 Qd2 $19) 32... fxe6 33. R1c7+ Kf6 $11) 30... Rxb2 {[%emt 0:01:14]} 31. Nd3 {[%emt 0:01:11]} (31. Nxf7 $142 a3 32. Nh6+ Kh8 33. Rf7) 31... Qd2 {[%emt 0:00:50] Hoping for ...Rb1.} 32. Nxb2 {[%emt 0:00:35]} Qxb2 {[%emt 0:00:07]} 33. Bg2 {[%emt 0:00:42]} Qb3 {[%emt 0:01:52]} (33... Qb1+ {might work better.} 34. Rc1 Qb7) 34. Bf3 {[%emt 0:02:53]} a3 {[%emt 0:01:34]} 35. Ra8 {[%emt 0:00:17]} Kg7 $2 {[%emt 0:00:10]} (35... h5 36. Kg2 h4) 36. Kg2 {[%emt 0:01:37] aiming for Raa7.} Bb4 $2 {[%emt 0:01:31]} (36... a2 $18 37. Rca7 Bb4 38. Rxa2 Be1) 37. Rd7 {[%emt 0:00:50]} (37. Raa7 $142 Kg8 38. Rxf7 Bf8 39. Rfd7 h6 40. Bxd5+ Qxd5+ 41. Rxd5 a2 42. Rxa2) 37... Be1 {[%emt 0:00:41]} 38. Bxd5 {[%emt 0:00:19]} Qb5 {[%emt 0:00:04]} 39. Rxf7+ {[%emt 0:00:09]} Kh6 {[%emt 0:00:06]} 40. e4 {[%emt 0:00:08]} Qb2 {[%emt 0:01:18]} 41. Raa7 {[%emt 0:32:10] Weighted Error Value: White=0.35/Black=0.86} 1-0

[Event "1st Serbian League 2022"]
[Site "Vrnjacka Banja"]
[Date "2022.09.29"]
[Round "10.4"]
[White "Saric, Sinisa"]
[Black "Kovacevic, Aleksandar"]
[Result "0-1"]
[ECO "E35"]
[WhiteElo "2372"]
[BlackElo "2471"]
[Annotator "TA"]
[PlyCount "142"]
[EventDate "2022.09.20"]
[EventType "team-tourn"]
[EventCountry "SRB"]
[SourceTitle "playchess.com"]
[Source "ChessBase"]
[SourceQuality "1"]
[TimeControl "40/5400+30:1800+30"]

{[%evp 13,142,14,21,18,18,15,18,8,15,7,11,12,10,0,0,0,8,0,0,0,0,0,0,0,0,0,0,-28,-29,-30,-26,-15,0,0,0,-54,-52,-89,-67,-118,-96,-112,-125,-104,-67,-57,-56,-64,-68,-72,-58,-104,-33,-121,-65,-65,-74,-87,-80,-138,-103,-137,-147,-164,-147,-233,-237,-214,-206,-204,-189,-170,-161,-160,-157,-145,-124,-179,-131,-247,-224,-229,-215,-225,-207,-197,-142,-132,-131,-130,-130,-130,-129,-125,-124,-156,-139,-156,-156,-141,-137,-135,-124,-12811,-12032,-11370,-5818,-1509,-1317,-12833,-12833,-12836,-12835,-12835,-12831,-12830,-12831,-12829,0,-1411,-1388,-914,-563,-456,-411,-12837,-12837,-12837,-12837,-5726,-1868]} 1. d4 {[%emt 0:03:00]} Nf6 {[%emt 0:00:18]} 2. c4 {[%emt 0:00:14]} e6 {[%emt 0:00:14]} 3. Nc3 {[%emt 0:00:15]} Bb4 {[%emt 0:00:23]} 4. Qc2 {[%emt 0:00:17]} d5 {[%emt 0:00:29]} 5. cxd5 {[%emt 0:00:15]} exd5 {[%emt 0:00:05]} 6. Bg5 {[%emt 1:29:29]} c5 {[%emt 0:01:05]} 7. dxc5 {[%emt 0:00:00]} h6 {[%emt 0:00:10]} 8. Bh4 {[%emt 0:00:00] E35: Nimzo-Indian: Classical: 4...d5 5 cxd5 exd5.} O-O {[%emt 0:00:27]} 9. e3 {[%emt 0:00:00]} Be6 {[%emt 0:00:25]} 10. Nf3 {[%emt 0:00:00] The position is equal.} Nbd7 {[%emt 0:00:28][%cal Bb8d7,Bd7c5,Bc5b3][%mdl 32]} 11. Be2 {[%emt 0:00:00]} Rc8 {[%emt 0:00:28]} 12. O-O {[%emt 0:00:00]} Nxc5 {[%emt 0:00:26]} 13. a3 {[%emt 0:00:00]} Bxc3 {[%emt 0:01:15]} 14. Qxc3 {[%emt 0:00:00]} g5 {[%emt 0:00:38]} 15. Bg3 {[%emt 0:00:00]} Nfe4 {[%emt 0:00:17]} 16. Qe1 {[%emt 0:00:00] [#]} Nxg3 $146 {[%emt 0:00:24]} ({Predecessor:} 16... Bf5 17. Qd1 Nxg3 18. hxg3 Be4 19. Nd4 Qf6 20. Rc1 Ne6 21. Qd2 Nxd4 22. exd4 Kg7 {½-½ (60) Martinovic,S (2558)-Volokitin,A (2635) Skopje 2019}) 17. hxg3 {[%emt 0:00:00]} Nb3 {[%emt 0:00:19]} 18. Rd1 {[%emt 0:00:00]} Qb6 {[%emt 0:00:14]} 19. Bd3 {[%emt 0:00:00]} Rfe8 {[%emt 0:00:16]} (19... Rfd8 {with more complications.} 20. Bb1 d4 21. exd4 Nxd4 22. Qe5 Rc5) 20. Qb4 {[%emt 0:00:00]} Qxb4 {[%emt 0:08:02]} 21. axb4 {[%emt 0:00:00]} Bg4 {[%emt 0:02:22]} 22. Bb1 {[%emt 0:00:00] Strongly threatening Ba2.} Rc4 {[%emt 0:03:56]} 23. Rxd5 {[%emt 0:00:00]} Rxb4 {[%emt 0:00:25]} 24. Rfd1 {[%emt 0:00:00]} (24. Bf5 $11 Bxf5 25. Rxf5) 24... Be6 {[%emt 0:11:23]} 25. Rd8 {[%emt 0:00:00]} Kf8 {[%emt 0:00:27]} 26. Ne5 {[%emt 0:00:00]} (26. R8d3 $15) 26... Nc5 {[%emt 0:02:58]} 27. Rxe8+ {[%emt 0:00:00]} Kxe8 {[%emt 0:00:01]} 28. Rd2 {[%emt 0:00:00]} Na4 {[%emt 0:09:16]} 29. Nd3 {[%emt 0:00:00]} Rb5 {[%emt 0:00:05]} 30. Bc2 {[%emt 0:00:00]} Nb6 {[%emt 0:01:04] Black is more active.} (30... Nxb2 31. Nxb2 Rxb2 32. Ba4+ b5 33. Rxb2 $16) 31. Bd1 {[%emt 0:03:24]} Ke7 {[%emt 0:03:16]} 32. e4 {[%emt 0:02:12]} (32. Kf1 $15) 32... Bc4 {[%emt 0:19:29]} (32... Nc4 $17 33. Re2 (33. Rc2 Nd6 $15) 33... Nd6) 33. Ne1 {[%emt 0:00:14]} (33. Nc1 $1 $15) 33... Rb4 {[%emt 0:01:05]} (33... a5 $17) 34. f3 $1 $15 {[%emt 0:01:28][%cal Ob2b3]} a5 {[%emt 0:00:45][%cal Ba7a5,Ba5a4][%mdl 32]} 35. Kf2 {[%emt 0:00:40]} a4 {[%emt 0:00:34]} 36. f4 {[%emt 0:03:15]} ({White should play} 36. Ke3) 36... Bb5 {[%emt 0:04:24]} 37. Rc2 {[%emt 0:02:51]} Bc6 {[%emt 0:24:24]} (37... Rxe4 38. fxg5 hxg5 39. Rc7+ Kd6 40. Rxb7 $15) 38. Bf3 {[%emt 0:00:50]} g4 $1 {[%emt 0:00:49][%cal Bg5g4,Bg4f3][%mdl 32]} (38... Bxe4 39. Bxe4 Rxe4 40. Rc7+ Ke6 41. Rxb7 $15) 39. Nd3 {[%emt 0:00:52]} (39. Bxg4 $17 {was called for.} Bxe4 40. Re2) 39... Rb3 $19 {[%emt 0:01:17]} 40. Nc5 {[%emt 0:00:31]} gxf3 {[%emt 0:01:06]} 41. Nxb3 {[%emt 0:02:31]} axb3 {[%emt 0:00:33]} 42. Rc3 {[%emt 0:00:38]} Na4 {[%emt 0:05:19]} (42... Bxe4 43. Re3 $18) 43. Rxb3 {[%emt 0:04:02]} fxg2 {[%emt 0:04:45]} 44. Kxg2 {[%emt 0:01:14]} Nc5 {[%emt 0:06:25]} 45. Ra3 {[%emt 0:06:24]} (45. Rc3 $17 Nxe4 46. Re3) 45... f5 {[%emt 0:09:03]} ({Weaker is} 45... Nxe4 46. Kh3 $17) ({Inferior is} 45... Bxe4+ 46. Kf2 $17) (45... Nd3 $19 46. Rxd3 Bxe4+ 47. Rf3 Kf6) 46. b4 {[%emt 0:07:20]} (46. Kf3 $17) 46... Bxe4+ {[%emt 0:01:01]} ({Not} 46... Nxe4 47. Kh3 $17) 47. Kh3 {[%emt 0:00:27]} Nd3 {[%emt 0:00:16]} 48. b5 {[%emt 0:00:16]} Kd6 $1 {[%emt 0:03:36] And now ...Kc5 would win.} 49. Rc3 {[%emt 0:00:09]} Nf2+ {[%emt 0:07:02]} (49... Nc5 $19 50. Kh4 b6) 50. Kh4 $17 {[%emt 0:00:15]} Bd3 {[%emt 0:00:42]} 51. b6 {[%emt 0:01:28]} Be4 {[%emt 0:01:04]} 52. Kh5 {[%emt 0:01:36]} Ng4 {[%emt 0:00:01]} 53. Kg6 {[%emt 0:05:05] [#]} Kd5 $1 {[%emt 0:00:02]} 54. Rc1 {[%emt 0:02:30]} Kd4 {[%emt 0:00:03] Against Rc3} 55. Rc7 {[%emt 0:00:18]} Ke3 {[%emt 0:00:06] Threatens to win with ...Kf2.} 56. Rc3+ {[%emt 0:00:15]} Kf2 {[%emt 0:00:29]} 57. Kh5 {[%emt 0:00:25]} Ne3 {[%emt 0:00:58]} 58. Kxh6 $2 {[%emt 0:00:25][%mdl 8192] [#]} (58. Ra3 $17) 58... Nf1 $1 $19 {[%emt 0:00:08]} 59. Kg5 {[%emt 0:00:38]} Nxg3 {[%emt 0:00:02]} 60. Ra3 {[%emt 0:00:28]} Ne2 {[%emt 0:00:06] Hoping for ...Ng1.} 61. Rh3 {[%emt 0:01:11]} Ng1 {[%emt 0:02:03]} 62. Rh7 {[%emt 0:02:17]} Nf3+ {[%emt 0:00:03]} 63. Kf6 {[%emt 0:00:04]} Nd4 {[%emt 0:00:37]} 64. Rh3 {[%emt 0:00:47]} Kg2 {[%emt 0:00:03]} 65. Ra3 {[%emt 0:00:22]} Kf2 {[%emt 0:00:29]} (65... Nf3 $142 66. Ra5 Ne1) 66. Rh3 $1 {[%emt 0:00:37]} Ke2 {[%emt 0:00:29] ...Nf3 is the strong threat.} 67. Ra3 {[%emt 0:00:43]} Nc6 {[%emt 0:00:03]} 68. Ke6 {[%emt 0:00:26]} Nb4 {[%emt 0:00:11]} 69. Ra7 {[%emt 0:01:48]} (69. Kf6 $142) 69... Nd3 {[%emt 0:00:05] Black is clearly winning.} 70. Kf6 {[%emt 0:00:26]} Nxf4 {[%emt 0:00:43]} 71. Ke5 {[%emt 0:00:31]} Ke3 {[%emt 0:04:04] Weighted Error Value: White=0.28 (precise) /Black=0.11 (very precise)} 0-1